bitfinex-derivatives/quotes_ETHF0:USTF0_20240928
["timestamp","ask_amount","ask_price","bid_price","bid_amount"]
[1727522778385,2.3333453,2673.8,2673.7,0.98158657]
[1727522778386,3.6833453,2673.8,2673.7,0.98158657]
[1727522778788,3.3093953,2673.8,2673.7,1.38358657]
[1727522779187,3.6833353,2673.8,2673.7,1.38358657]
[1727522779583,2.3333353,2673.8,2673.7,1.38358657]
[1727522779789,3.6833353,2673.8,2673.7,1.38358657]
[1727522779989,4.0705353,2673.8,2673.7,1.38358657]
[1727522781192,4.0705353,2673.8,2673.7,0.402]
[1727522781390,4.0705353,2673.8,2673.7,1.38358657]
[1727522782186,2.11114,2673.8,2673.7,0.402]
[1727522782790,5.31894,2673.8,2673.7,0.402]
[1727522783997,6.9043953,2673.8,2673.7,0.402]
[1727522784295,6.41317603,2673.8,2673.7,1.38358657]
[1727522784595,5.31894,2673.8,2673.7,0.402]
[1727522785387,6.78692303,2673.8,2673.7,0.402]
[1727522787798,6.41298303,2673.8,2673.7,0.402]
[1727522788704,6.78692303,2673.8,2673.7,0.402]
[1727522788997,6.41298303,2673.8,2673.7,0.402]
[1727522789592,4.67578303,2673.8,2673.7,0.77595]
[1727522789788,3.2078,2673.8,2673.7,5.1623372]
[1727522789988,0.97836284,2674.0,2673.9,0.37392]
[1727522790194,1.46798303,2674.1,2673.9,2.53492447]
[1727522790195,0.97836284,2674.1,2673.9,2.53492447]
[1727522790396,0.97836284,2674.1,2674.0,0.37391]
[1727522790701,0.97836284,2674.1,2674.0,0.3898]
[1727522792190,4.18616284,2674.1,2674.0,0.3898]
[1727522793100,4.18616284,2674.1,2674.0,0.7596]
[1727522795407,3.2078,2674.1,2674.0,0.7596]
[1727522797197,4.5578,2674.1,2673.8,0.98015692]
[1727522797397,4.5578,2674.1,2673.8,0.3744]
[1727522797398,0.74602,2674.0,2673.8,0.3744]
[1727522797802,0.4043,2673.9,2673.8,0.3744]
[1727522798202,0.4043,2673.9,2673.8,0.74834]
[1727522798398,1.7543,2673.9,2673.6,0.98015692]
[1727522798604,5.33603,2673.9,2673.7,0.74835]
[1727522799305,0.37394,2673.8,2673.7,0.3744]
[1727522804306,0.37394,2673.8,2673.7,0.74835]
[1727522805304,0.37394,2673.8,2673.7,0.3744]
[1727522805607,0.37394,2673.8,2673.7,0.74835]
[1727522806111,3.58174,2673.8,2673.7,0.74835]
[1727522808306,3.2078,2673.8,2673.7,0.74835]
[1727522809708,3.10659284,2673.9,2673.7,0.74835]
[1727522810917,3.58174,2673.8,2673.7,0.74835]
[1727522811408,3.2078,2673.8,2673.7,0.74835]
[1727522811910,3.10659284,2673.9,2673.7,0.74835]
[1727522812111,3.58174,2673.8,2673.7,0.74835]
[1727522812414,3.2078,2673.8,2673.7,0.74835]
[1727522812603,4.18616284,2673.8,2673.7,0.74835]
[1727522812805,3.2078,2673.8,2673.7,0.74835]
[1727522813307,4.18616284,2673.8,2673.7,0.74835]
[1727522813507,4.56010284,2673.8,2673.7,0.74835]
[1727522813708,3.58174,2673.8,2673.7,0.74835]
[1727522813910,3.2078,2673.8,2673.7,0.74835]
[1727522815102,4.18616284,2673.8,2673.7,0.74835]
[1727522815713,0.97836284,2673.8,2673.7,0.74835]
[1727522815914,6.31439284,2673.9,2673.7,0.74835]
[1727522816717,3.10659284,2673.9,2673.7,0.74835]
[1727522817023,0.97836284,2673.8,2673.7,0.3744]
[1727522817214,0.97836284,2673.8,2673.7,0.74834]
[1727522817410,1.35230284,2673.8,2673.7,0.74834]
[1727522818112,0.97836284,2673.8,2673.7,0.74834]
[1727522818315,1.35230284,2673.8,2673.7,0.74834]
[1727522818516,1.35230284,2673.8,2673.7,1.72849692]
[1727522819107,0.97836284,2673.8,2673.7,1.72849692]
[1727522822115,1.35230284,2673.8,2673.7,1.72849692]
[1727522822320,0.97836284,2673.8,2673.7,1.72849692]
[1727522823115,6.80402303,2673.9,2673.7,1.72849692]
[1727522823322,1.84192303,2673.8,2673.7,1.35455692]
[1727522823515,1.84192303,2673.8,2673.7,1.72850692]
[1727522823917,0.37394,2673.8,2673.7,2.91699301]
[1727522824119,0.37394,2673.8,2673.7,2.9169826]
[1727522824921,6.80401303,2673.9,2673.7,2.9169826]
[1727522825219,1.84192303,2673.8,2673.7,1.72850692]
[1727522826123,1.84192303,2673.8,2673.7,2.91704167]
[1727522826313,1.84192303,2673.8,2673.7,2.54309167]
[1727522826513,1.84192303,2673.8,2673.7,1.35455692]
[1727522826719,1.84192303,2673.8,2673.7,2.54312541]
[1727522826919,1.84192303,2673.8,2673.7,2.54312629]
[1727522827224,1.84192303,2673.8,2673.7,2.54313674]
[1727522827518,1.84192303,2673.8,2673.7,2.91708674]
[1727522830118,1.46798303,2673.8,2673.7,2.91708674]
[1727522830320,1.84192303,2673.8,2673.7,2.91708674]
[1727522830522,1.84192303,2673.8,2673.7,2.91718449]
[1727522831615,1.84192303,2673.8,2673.7,2.91720426]
[1727522832211,1.46798303,2673.8,2673.7,2.91720426]
[1727522832720,1.46798303,2673.8,2673.7,3.40768676]
[1727522834233,5.45401303,2673.9,2673.8,0.37394]
[1727522834525,5.45508342,2673.9,2673.8,1.35489394]
[1727522836233,3.98603,2673.9,2673.8,1.35489394]
[1727522836532,0.77823,2673.9,2673.8,1.35489394]
[1727522836719,3.98603,2673.9,2673.8,1.35489394]
[1727522837414,3.6121,2673.9,2673.8,1.35489394]
[1727522837616,3.98602,2673.9,2673.8,1.35489394]
[1727522837822,5.08137759,2673.9,2673.8,2.5438203]
[1727522838025,5.45529759,2673.9,2673.8,2.5438203]
[1727522838228,3.98602,2673.9,2673.8,2.5438203]
[1727522838928,3.6121,2673.9,2673.8,2.5438203]
[1727522839123,2.3332953,2674.1,2673.8,2.65956578]
[1727522839329,2.3332953,2674.1,2674.0,1.35507641]
[1727522839540,3.2078,2674.2,2674.1,0.3739]
[1727522839541,5.5410853,2674.2,2674.1,0.3739]
[1727522839829,5.1671953,2674.2,2674.1,0.3739]
[1727522840219,5.16714702,2674.2,2674.1,0.3739]
[1727522840421,5.54102702,2674.2,2674.0,2.11566641]
[1727522840625,1.95934702,2674.1,2674.0,2.11566641]
[1727522840821,3.58168,2674.2,2674.0,2.31963628]
[1727522840822,5.54102702,2674.2,2674.0,2.31963628]
[1727522841021,5.54102702,2674.2,2674.1,0.98115364]
[1727522841424,3.58168,2674.2,2674.0,2.11565364]
[1727522841621,1.95927726,2674.1,2674.0,2.11565364]
[1727522843125,1.95927726,2674.1,2674.0,3.30096824]
[1727522843435,1.95927726,2674.1,2674.0,2.11565364]
[1727522845336,5.54095726,2674.2,2674.0,2.319633]
[1727522845529,5.54095726,2674.2,2674.1,0.98114265]
[1727522845723,5.54095726,2674.2,2674.0,2.11564265]
[1727522847630,1.95927726,2674.1,2674.0,2.11565265]
[1727522847835,3.58168,2674.2,2674.0,2.11565265]
[1727522847836,5.54095726,2674.2,2674.0,2.11565265]
[1727522848236,2.33317726,2674.1,2674.0,1.74174265]
[1727522849139,0.3739,2674.1,2674.0,1.74174265]
[1727522850030,2.33317726,2674.1,2674.0,1.74174265]
[1727522850230,2.33317726,2674.1,2674.0,0.7606]
[1727522850638,5.54097726,2674.1,2674.0,0.7606]
[1727522851046,2.33317726,2674.1,2674.0,0.7606]
[1727522851741,5.54097726,2674.1,2674.0,0.7606]
[1727522852142,2.33317726,2674.1,2674.0,0.7606]
[1727522852644,5.54097726,2674.1,2674.0,0.7606]
[1727522853039,2.33317726,2674.1,2674.0,0.7606]
[1727522853240,5.54097726,2674.1,2674.0,0.7606]
[1727522853731,5.54097726,2674.1,2674.0,0.3893]
[1727522854435,5.94037726,2674.1,2674.0,0.3893]
[1727522862648,0.37391,2674.0,2673.9,0.98114265]
[1727522862849,0.37392,2673.9,2673.8,0.98114265]
[1727522863352,0.37392,2673.9,2673.7,0.98114265]
[1727522863353,0.37394,2673.8,2673.7,0.98114265]
[1727522863549,5.05033695,2673.8,2673.7,1.1855585]
[1727522863755,5.05033695,2673.8,2673.7,2.65733339]
[1727522863956,5.05033695,2673.8,2673.7,1.1855585]
[1727522864451,5.42753695,2673.8,2673.7,1.1855585]
[1727522864758,5.42753695,2673.8,2673.7,2.1666967]
[1727522865256,5.42753695,2673.8,2673.7,2.16669998]
[1727522868256,5.42753695,2673.8,2673.7,0.9811382]
[1727522869456,5.42753695,2673.8,2673.7,1.3550882]
[1727522869666,3.95894,2673.8,2673.7,1.3550882]
[1727522869868,3.95894,2673.8,2673.7,0.9811382]
[1727522871768,11.94306726,2673.8,2673.7,0.9811382]
[1727522871977,11.94306726,2673.8,2673.6,0.3941]
[1727522871978,0.37395,2673.7,2673.6,0.3941]
[1727522872158,2.33201606,2673.7,2673.6,0.3941]
[1727522872673,0.37395,2673.7,2673.6,0.3941]
[1727522872972,2.33201606,2673.7,2673.6,0.3941]
[1727522873771,0.37395,2673.7,2673.6,0.3941]
[1727522874070,0.37395,2673.7,2673.6,0.76807]
[1727522874274,1.84212921,2673.7,2673.6,0.76807]
[1727522874676,1.46817921,2673.7,2673.6,3.0992082]
[1727522878273,1.46817921,2673.7,2673.6,1.7492082]
[1727522879275,1.84212921,2673.7,2673.6,1.7492082]
[1727522879677,1.46817921,2673.7,2673.6,0.76807]
[1727522880568,4.67597921,2673.7,2673.6,0.76807]
[1727522880774,4.67597921,2673.7,2673.6,1.7492082]
[1727522881284,3.2078,2673.7,2673.6,1.7492082]
[1727522881578,4.67597921,2673.7,2673.6,1.7492082]
[1727522882378,4.67597921,2673.7,2673.6,0.76807]
[1727522884276,3.2078,2673.7,2673.6,0.76807]
[1727522884479,1.84212921,2673.8,2673.6,0.76807]
[1727522884780,3.2078,2673.7,2673.6,0.76807]
[1727522885075,1.84212921,2673.8,2673.6,0.76807]
[1727522885277,3.2078,2673.7,2673.6,0.76807]
[1727522885776,4.67597921,2673.7,2673.6,0.76807]
[1727522886374,3.2078,2673.7,2673.6,1.15477]
[1727522886877,5.04992921,2673.7,2673.6,0.7808]
[1727522887579,5.04992921,2673.7,2673.6,1.15477]
[1727522888577,5.04992921,2673.7,2673.6,0.7808]
[1727522890084,3.58175,2673.7,2673.6,0.7808]
[1727522890774,5.04967911,2673.7,2673.6,0.7808]
[1727522890979,3.58175,2673.7,2673.6,0.7808]
[1727522892777,5.04982112,2673.7,2673.6,0.7808]
[1727522892982,3.58175,2673.7,2673.6,0.7808]
[1727522894485,5.53981606,2673.7,2673.6,0.7808]
[1727522894782,3.58175,2673.7,2673.6,0.7808]
[1727522895682,5.53981606,2673.7,2673.6,0.7808]
[1727522897088,3.58175,2673.7,2673.6,0.7808]
[1727522897284,5.53981606,2673.7,2673.6,0.7808]
[1727522899681,3.58175,2673.7,2673.6,0.7808]
[1727522899882,5.53981606,2673.7,2673.6,0.7808]
[1727522901283,5.91331606,2673.7,2673.6,0.7808]
[1727522904284,5.53981606,2673.7,2673.6,0.7808]
[1727522905995,2.33201606,2673.7,2673.6,0.7808]
[1727522906190,5.53981606,2673.7,2673.6,0.7808]
[1727522909287,3.58175,2673.7,2673.6,0.7808]
[1727522914199,0.37395,2673.7,2673.6,0.7808]
[1727522914397,3.58175,2673.7,2673.6,0.7808]
[1727522917204,0.37395,2673.7,2673.6,0.7808]
[1727522917399,3.58175,2673.7,2673.6,0.7808]
[1727522917599,0.37395,2673.7,2673.6,0.7808]
[1727522918397,3.58175,2673.7,2673.6,0.7808]
[1727522920803,0.37395,2673.7,2673.6,0.7808]
[1727522920997,3.58175,2673.7,2673.6,0.7808]
[1727522921808,6.034027,2673.7,2673.6,0.7808]
[1727522922012,3.58175,2673.7,2673.6,0.7808]
[1727522928502,6.034027,2673.7,2673.6,0.7808]
[1727522928812,3.58175,2673.7,2673.6,0.7808]
[1727522929513,6.034027,2673.7,2673.6,0.7808]
[1727522930311,6.034027,2673.7,2673.6,1.7619382]
[1727522930508,12.244027,2673.7,2673.6,1.7619382]
[1727522930709,6.034027,2673.7,2673.6,0.7808]
[1727522931211,6.034027,2673.7,2673.6,1.7619382]
[1727522932005,2.826227,2673.7,2673.6,1.7619382]
[1727522932403,6.034027,2673.7,2673.6,1.7619382]
[1727522937218,6.034027,2673.7,2673.6,2.95095698]
[1727522939416,6.034027,2673.7,2673.6,2.95095654]
[1727522940020,2.826227,2673.7,2673.6,2.95095654]
[1727522940213,6.034027,2673.7,2673.6,2.95095654]
[1727522940410,6.034027,2673.7,2673.6,2.9509583]
[1727522940611,5.660077,2673.7,2673.6,2.9509583]
[1727522940831,5.660077,2673.7,2673.6,7.55556499]
[1727522940832,1.96201425,2673.7,2673.6,7.55556499]
[1727522941107,1.96201425,2673.9,2673.8,0.37394]
[1727522941317,1.96201425,2673.9,2673.8,1.5629601]
[1727522941513,3.2078,2674.0,2673.9,0.37392]
[1727522941715,3.2078,2674.0,2673.9,3.3088401]
[1727522941716,4.678776,2674.0,2673.9,3.3088401]
[1727522942021,4.678776,2674.0,2673.9,7.4462401]
[1727522942513,4.18798416,2674.0,2673.9,8.91753545]
[1727522943814,4.18798416,2674.0,2673.9,8.90482748]
[1727522944224,4.18798416,2674.0,2673.9,5.16482748]
[1727522944423,4.18798416,2674.0,2673.9,3.69353213]
[1727522945013,4.18798416,2674.0,2673.9,3.49752305]
[1727522945220,4.18798416,2674.0,2673.9,4.67356585]
[1727522945421,4.18798416,2674.0,2673.9,3.49752305]
[1727522947318,4.18798416,2674.0,2673.9,2.51722]
[1727522948521,3.2078,2674.0,2673.9,2.51722]
[1727522949721,1.35408416,2674.1,2673.9,2.51722]
[1727522950023,1.35408416,2674.1,2674.0,0.4041]
[1727522950323,4.56188416,2674.1,2674.0,0.4041]
[1727522950717,1.35408416,2674.1,2674.0,0.4041]
[1727522951143,4.56188416,2674.1,2674.0,0.4041]
[1727522951528,1.35408416,2674.1,2674.0,0.4041]
[1727522951718,4.56188416,2674.1,2674.0,0.4041]
[1727522954427,1.35408416,2674.1,2674.0,0.4041]
[1727522954727,4.56188416,2674.1,2674.0,0.4041]
[1727522956023,1.35408416,2674.1,2674.0,0.4041]
[1727522956219,4.56188416,2674.1,2674.0,0.4041]
[1727522956425,4.18798416,2674.1,2674.0,0.4041]
[1727522956827,4.56188416,2674.1,2674.0,0.4041]
[1727522957329,1.35408416,2674.1,2674.0,0.4041]
[1727522957524,4.56188416,2674.1,2674.0,0.4041]
[1727522958124,1.35408416,2674.1,2674.0,0.4041]
[1727522958430,4.56188416,2674.1,2674.0,0.4041]
[1727522959128,1.35408416,2674.1,2674.0,0.4041]
[1727522959627,4.56188416,2674.1,2674.0,0.4041]
[1727522961329,4.56188416,2674.1,2673.9,0.3974]
[1727522961330,0.37391,2674.0,2673.9,0.3974]
[1727522961929,1.35409416,2674.0,2673.9,0.3974]
[1727522962430,2.13619416,2674.0,2673.9,0.3974]
[1727522964030,2.13619416,2674.0,2673.8,0.37394]
[1727522964031,0.37392,2673.9,2673.8,0.37394]
[1727522964228,0.76662,2673.9,2673.8,0.37394]
[1727522966031,0.76662,2673.9,2673.7,3.49220305]
[1727522966032,0.37394,2673.8,2673.7,3.86615305]
[1727522966236,3.58174,2673.8,2673.7,2.88585]
[1727522968428,3.2078,2673.8,2673.7,2.88585]
[1727522969235,3.2078,2673.8,2673.7,3.86615305]
[1727522970231,3.2078,2673.8,2673.7,2.88585]
[1727522970431,3.2078,2673.8,2673.7,3.86615305]
[1727522970734,0.76663,2673.9,2673.8,0.37394]
[1727522970930,3.97443,2673.9,2673.8,0.37394]
[1727522973734,3.6005,2673.9,2673.8,0.37394]
[1727522974734,3.6005,2673.9,2673.8,1.72394]
[1727522975136,3.2078,2673.9,2673.8,6.44424305]
[1727522977540,3.2078,2673.9,2673.8,6.63958517]
[1727522977732,0.98018416,2674.1,2674.0,0.37391]
[1727522978140,0.98018416,2674.2,2674.1,0.3739]
[1727522978344,0.98018416,2674.2,2674.1,2.5142]
[1727522978544,1.470976,2674.2,2674.1,2.5142]
[1727522978735,0.37387,2674.3,2674.1,2.1403]
[1727522978736,1.844846,2674.3,2674.1,2.1403]
[1727522979440,1.470976,2674.2,2674.1,2.5142]
[1727522979635,1.470976,2674.2,2674.1,1.1642]
[1727522983449,2.33588425,2674.3,2674.1,1.1642]
[1727522983751,1.46870465,2674.2,2674.1,1.1642]
[1727522984445,2.33588425,2674.3,2674.1,2.14413302]
[1727522985550,0.3739,2674.1,2674.0,1.36443302]
[1727522985859,5.54125588,2674.1,2674.0,1.36443302]
[1727522986145,5.54125588,2674.1,2674.0,0.97993302]
[1727522986346,6.92415588,2674.1,2673.9,0.97993302]
[1727522986542,7.29805588,2674.1,2674.0,0.98123051]
[1727522986743,0.37391,2674.0,2673.9,0.98123051]
[1727522987253,2.3334081,2674.0,2673.9,0.98123051]
[1727522988348,0.37391,2674.0,2673.9,2.15836849]
[1727522988543,2.3334081,2674.0,2673.9,0.98123051]
[1727522988747,0.37391,2674.0,2673.9,2.15835822]
[1727522988948,2.3334081,2674.0,2673.9,0.98123051]
[1727522989153,0.37391,2674.0,2673.9,0.98123051]
[1727522989345,0.37391,2674.0,2673.9,2.15836004]
[1727522989644,0.37391,2674.0,2673.9,2.15836791]
[1727522989845,0.37391,2674.0,2673.9,2.53228791]
[1727522993454,0.37391,2674.0,2673.9,2.15836791]
[1727522993656,2.3334081,2674.0,2673.9,0.98123051]
[1727522993854,0.37392,2673.9,2673.8,1.38066882]
[1727522994053,0.37392,2673.9,2673.8,2.55783204]
[1727522994357,0.37392,2673.9,2673.8,1.3806588]
[1727522994557,2.3334181,2673.9,2673.8,1.3806588]
[1727522994957,0.37392,2673.9,2673.8,1.3806588]
[1727522995158,0.37392,2673.9,2673.8,2.55778737]
[1727522995359,0.37392,2673.9,2673.8,1.3806588]
[1727522995556,2.3334181,2673.9,2673.8,1.3806588]
[1727522995951,0.37392,2673.9,2673.8,1.3806588]
[1727522997059,0.78162,2673.9,2673.8,1.3806588]
[1727522998066,0.78162,2673.9,2673.8,1.7545988]
[1727523000360,1.84350127,2673.9,2673.8,4.28152713]
[1727523000869,0.37392,2673.9,2673.8,3.90759046]
[1727523001057,0.37392,2673.9,2673.8,2.7306588]
[1727523001457,2.3334181,2673.9,2673.8,2.7306588]
[1727523001652,0.37392,2673.9,2673.8,2.7306588]
[1727523001853,0.37392,2673.9,2673.8,3.1045988]
[1727523002058,2.65874,2673.9,2673.8,1.3806588]
[1727523002263,2.65874,2673.9,2673.6,0.261]
[1727523002264,0.37395,2673.7,2673.6,0.6412]
[1727523002463,0.37395,2673.7,2673.6,0.3802]
[1727523002464,3.58175,2673.7,2673.6,0.3802]
[1727523003152,5.54019383,2673.7,2673.6,0.3802]
[1727523003369,5.54011908,2673.7,2673.6,0.3802]
[1727523003760,0.37397,2673.6,2673.4,1.41139]
[1727523004060,0.37397,2673.6,2673.4,1.51939]
[1727523004061,1.46850652,2673.5,2673.4,1.51939]
[1727523004367,1.46849723,2673.5,2673.4,1.51939]
[1727523004861,1.46849723,2673.5,2673.4,0.369]
[1727523004862,0.37398,2673.5,2673.4,0.369]
[1727523005063,2.72008831,2673.5,2673.4,0.369]
[1727523005258,1.15178,2673.5,2673.4,0.369]
[1727523005462,3.10855058,2673.5,2673.4,0.369]
[1727523007462,1.15178,2673.5,2673.4,0.369]
[1727523008258,4.5186,2673.5,2673.1,1.41413]
[1727523008462,3.2078,2673.2,2673.1,1.53333]
[1727523013058,3.58182,2673.2,2673.1,1.53333]
[1727523013865,3.58182,2673.2,2673.1,1.1593]
[1727523014062,4.93182,2673.2,2673.1,1.53334]
[1727523014257,4.93182,2673.2,2673.1,1.1593]
[1727523015560,8.67262,2673.2,2673.1,1.1593]
[1727523015768,8.67262,2673.2,2673.1,0.7796]
[1727523016765,8.67262,2673.2,2673.1,0.3802]
[1727523018070,5.46482,2673.2,2673.1,0.3802]
[1727523018372,8.67262,2673.2,2673.1,0.3802]
[1727523018579,0.37404,2673.1,2672.9,1.13916]
[1727523021179,1.35,2673.0,2672.9,1.13916]
[1727523024771,1.72405,2673.0,2672.9,0.7651]
[1727523024976,1.72404,2673.1,2672.9,1.13916]
[1727523025579,0.37405,2673.0,2672.9,0.7651]
[1727523026374,3.2078,2673.2,2672.9,0.7651]
[1727523026574,3.58183,2673.2,2673.0,0.37405]
[1727523028270,3.2078,2673.2,2672.9,0.7651]
[1727523028707,0.37404,2673.1,2672.9,1.13915]
[1727523029790,0.37404,2673.1,2672.9,1.13916]
[1727523032583,3.2078,2673.2,2672.9,0.7651]
[1727523032584,0.37405,2673.0,2672.9,0.7651]
[1727523033176,0.37405,2673.0,2672.9,1.13916]
[1727523033585,1.35,2673.1,2672.9,1.13916]
[1727523033586,1.72404,2673.1,2672.9,1.13916]
[1727523034884,1.35,2673.1,2672.9,1.13916]
[1727523035090,1.72404,2673.1,2672.9,1.13916]
[1727523035286,0.97776244,2673.3,2673.0,1.35]
[1727523035495,1.35176244,2673.4,2673.2,0.37402]
[1727523035683,0.374,2673.4,2673.3,1.1643]
[1727523039386,1.35176244,2673.4,2673.3,1.1643]
[1727523044391,1.84064366,2673.4,2673.3,1.1643]
[1727523048398,0.374,2673.4,2673.3,1.1643]
[1727523048598,1.84131938,2673.4,2673.3,1.1643]
[1727523048998,1.46729596,2673.4,2673.3,1.53831]
[1727523049197,1.46729596,2673.4,2673.3,3.8695688]
[1727523049390,5.04908596,2673.5,2673.3,7.6103688]
[1727523049596,0.9782327,2673.4,2673.3,3.8695688]
[1727523049806,5.04908596,2673.5,2673.3,3.8695688]
[1727523050301,0.97826946,2673.4,2673.3,3.8695588]
[1727523050905,0.97826946,2673.4,2673.3,7.6103588]
[1727523051201,0.97826946,2673.4,2673.3,8.79735918]
[1727523051502,0.97826946,2673.4,2673.3,8.79666612]
[1727523051804,0.97826946,2673.4,2673.3,7.81600138]
[1727523052098,0.97826946,2673.4,2673.3,8.79665862]
[1727523052604,0.97826946,2673.4,2673.3,5.05585862]
[1727523052807,0.97826946,2673.4,2673.3,7.60975724]
[1727523053106,0.97826946,2673.4,2673.3,8.79657584]
[1727523053700,0.97826946,2673.4,2673.3,3.49495724]
[1727523053904,0.97826946,2673.4,2673.3,1.1643]
[1727523054108,5.04907596,2673.5,2673.3,1.1643]
[1727523054800,3.21759596,2673.4,2673.3,1.1643]
[1727523055003,3.21759596,2673.4,2673.3,1.53831]
[1727523055696,0.37401,2673.3,2673.2,0.98065724]
[1727523055998,0.37402,2673.2,2673.1,0.98065724]
[1727523056200,1.35197198,2673.2,2673.1,0.98065724]
[1727523059494,0.37404,2673.1,2673.0,1.73020724]
[1727523059698,0.37404,2673.1,2673.0,2.91698421]
[1727523060103,0.37404,2673.1,2673.0,2.54293421]
[1727523060296,0.37404,2673.1,2672.9,1.84535535]
[1727523060297,0.37405,2673.0,2672.9,0.98065724]
[1727523060497,0.37406,2672.9,2672.8,1.37115724]
[1727523060703,1.35181027,2672.9,2672.8,1.37115724]
[1727523062394,1.35181027,2672.9,2672.8,1.74523724]
[1727523063302,0.97775027,2672.9,2672.8,1.74523724]
[1727523063893,1.35181027,2672.9,2672.8,1.37115724]
[1727523064098,1.35181027,2672.9,2672.8,0.98065724]
[1727523064306,1.35181027,2672.9,2672.7,1.73943724]
[1727523064307,0.37408,2672.8,2672.7,1.73943724]
[1727523064508,0.37408,2672.8,2672.7,2.92611227]
[1727523065894,0.37408,2672.8,2672.7,1.3652803]
[1727523066102,2.70183027,2672.8,2672.7,0.3847]
[1727523066499,2.70183027,2672.8,2672.7,0.75879]
[1727523066895,2.32775027,2672.8,2672.7,0.75879]
[1727523067096,1.35183027,2672.8,2672.7,0.75879]
[1727523068509,0.37408,2672.8,2672.7,0.75879]
[1727523069309,5.53555027,2672.9,2672.7,0.3847]
[1727523069611,0.37408,2672.8,2672.7,0.75878]
[1727523071106,5.90962027,2672.9,2672.7,0.75878]
[1727523073205,5.53555027,2672.9,2672.7,0.75878]
[1727523073514,5.90962027,2672.9,2672.7,0.75878]
[1727523074809,1.72408,2672.8,2672.7,0.75878]
[1727523075015,1.35,2672.8,2672.7,0.75878]
[1727523077912,1.72408,2672.8,2672.7,0.75878]
[1727523080717,1.72408,2672.8,2672.7,0.3847]
[1727523081215,1.35,2672.8,2672.7,0.75879]
[1727523081420,7.00455027,2672.8,2672.5,2.3669003]
[1727523081619,0.37411,2672.6,2672.5,1.12532]
[1727523081823,0.37411,2672.6,2672.5,0.3708]
[1727523082025,0.74831,2672.6,2672.5,0.3708]
[1727523082414,0.74831,2672.6,2672.5,0.74492]
[1727523083020,1.7241,2672.7,2672.6,0.37411]
[1727523083220,1.7241,2672.7,2672.5,0.74491]
[1727523083426,0.37411,2672.6,2672.5,0.74491]
[1727523088122,0.37411,2672.6,2672.5,0.3708]
[1727523088123,3.58191,2672.6,2672.5,0.3708]
[1727523088322,3.58191,2672.6,2672.5,0.74492]
[1727523088525,3.58191,2672.6,2672.5,0.37412]
[1727523089815,3.2078,2672.6,2672.4,0.76963]
[1727523090111,1.35,2672.5,2672.4,0.76963]
[1727523091313,1.72412,2672.5,2672.4,0.3955]
[1727523091729,2.11002,2672.5,2672.4,0.3955]
[1727523092025,3.08777027,2672.5,2672.4,0.3955]
[1727523092616,3.08777027,2672.5,2672.3,0.3822]
[1727523092617,0.37413,2672.4,2672.3,0.3822]
[1727523092813,0.37415,2672.3,2672.1,0.74847]
[1727523093019,1.35,2672.2,2672.1,0.74847]
[1727523093219,1.72416,2672.2,2672.1,0.3743]
[1727523095017,1.35,2672.2,2672.1,0.74848]
[1727523095219,1.35,2672.2,2672.1,0.3743]
[1727523095624,1.35,2672.2,2672.1,0.74848]
[1727523096730,4.5578,2672.3,2672.2,0.37416]
[1727523097526,4.5578,2672.3,2671.9,0.9805803]
[1727523097715,4.5578,2672.3,2672.2,1.12786]
[1727523097918,3.2078,2672.3,2672.2,1.12786]
[1727523098523,3.5558,2672.6,2672.4,0.37413]
[1727523098715,3.2078,2672.6,2672.5,0.3704]
[1727523099125,3.58191,2672.6,2672.5,0.3704]
[1727523099427,3.58191,2672.6,2672.5,0.7457]
[1727523099823,3.2078,2672.6,2672.5,0.7457]
[1727523100022,3.58191,2672.6,2672.5,0.7457]
[1727523102047,0.37411,2672.6,2672.5,0.7457]
[1727523102233,3.58191,2672.6,2672.5,0.7457]
[1727523102426,4.93191,2672.6,2672.5,0.7457]
[1727523104533,5.90966027,2672.6,2672.5,0.7457]
[1727523105233,4.93191,2672.6,2672.5,0.7457]
[1727523105940,5.90966027,2672.6,2672.5,0.7457]
[1727523107039,2.70186027,2672.6,2672.5,0.7457]
[1727523107233,5.90966027,2672.6,2672.5,0.7457]
[1727523107630,2.70186027,2672.6,2672.5,0.7457]
[1727523107935,5.90966027,2672.6,2672.5,0.7457]
[1727523118038,6.39883778,2672.6,2672.5,0.7457]
[1727523120947,0.37413,2672.5,2672.3,1.3547303]
[1727523121242,1.35,2672.4,2672.3,1.7305303]
[1727523122740,4.5578,2672.4,2672.3,1.7305303]
[1727523122939,4.93193,2672.4,2672.3,1.3563803]
[1727523123442,4.93193,2672.4,2672.3,1.7305303]
[1727523123635,5.90874248,2672.4,2672.3,1.7305303]
[1727523123937,4.93193,2672.4,2672.3,2.93198835]
[1727523124642,4.93193,2672.4,2672.3,2.93200108]
[1727523125638,4.93193,2672.4,2672.3,1.95142078]
[1727523126039,1.72413,2672.4,2672.3,1.95142078]
[1727523126335,4.93193,2672.4,2672.3,1.95142078]
[1727523126537,5.90874248,2672.4,2672.3,2.93240846]
[1727523126939,5.90874248,2672.4,2672.3,2.55825846]
[1727523127344,5.90874248,2672.4,2672.3,1.35678768]
[1727523127542,5.90874248,2672.4,2672.3,0.3758]
[1727523127543,6.39885778,2672.4,2672.3,0.3758]
[1727523128240,6.39885778,2672.4,2672.3,1.35678768]
[1727523128439,0.37415,2672.3,2672.2,1.75544768]
[1727523128639,0.37415,2672.3,2672.2,2.14984768]
[1727523128640,1.35139391,2672.3,2672.2,2.14984768]
[1727523128840,1.35139391,2672.3,2672.2,1.77568768]
[1727523129042,1.35140163,2672.3,2672.2,1.77568768]
[1727523129746,1.35140163,2672.3,2672.2,2.97753214]
[1727523130054,1.35140163,2672.3,2672.2,1.77568768]
[1727523130751,0.37415,2672.3,2672.2,1.77568768]
[1727523131250,1.3513448,2672.3,2672.2,1.77568768]
[1727523131653,1.3513448,2672.3,2672.2,2.97763063]
[1727523132353,4.5591448,2672.3,2672.2,2.97763063]
[1727523132746,5.04887778,2672.3,2672.2,1.77568768]
[1727523132953,4.55921455,2672.3,2672.2,1.77568768]
[1727523133550,4.55921455,2672.3,2672.2,2.9776984]
[1727523133754,3.58195,2672.3,2672.2,1.77568768]
[1727523133953,5.04887778,2672.3,2672.2,1.77568768]
[1727523134153,3.58195,2672.3,2672.2,0.3944]